fUST/lending_fUST_20240812
["ID","MTS","AMOUNT","RATE_DAILY","PERIOD"]
[334691043,1723477559195,-150.112234,0.000156,2]
[334691044,1723477559216,-150.112233,0.000156,2]
[334691045,1723477559237,-500.0,0.00015629,2]
[334691046,1723477559264,-535.90743817,0.00015629,2]
[334691047,1723477559286,-2838.76,0.00015629,2]
[334691048,1723477559310,-15145.08439192,0.0001563,2]
[334691049,1723477559334,-62963.1778719,0.0001563,2]
[334691050,1723477559358,-127.47009961,0.00015639,2]
[334691051,1723477566853,154.69833824,9.999e-05,2]
[334691052,1723477606198,154.69833824,0.0001212,2]
[334691053,1723477609405,162.168076,0.00014247,2]
[334691054,1723477626115,-300.0,0.00015528,2]
[334691055,1723477626139,-300.0,0.00015528,2]
[334691056,1723477626160,-500.0,0.00015529,2]
[334691057,1723477626181,-508.3166345,0.00015529,2]
[334691058,1723477626205,-989.92,0.00015529,2]
[334691059,1723477626228,-500.0,0.00015529,2]
[334691060,1723477626251,-500.0,0.00015529,2]
[334691061,1723477626271,-500.0,0.00015529,2]
[334691062,1723477626304,-6140.5,0.00015529,2]
[334691063,1723477626326,-1961.64,0.00015529,2]
[334691064,1723477626347,-1297.58,0.00015529,2]
[334691065,1723477626366,-500.0,0.00015529,2]
[334691066,1723477626387,-500.0,0.0001553,2]
[334691067,1723477626408,-856.41,0.0001553,2]
[334691068,1723477626429,-1004.82,0.0001553,2]
[334691069,1723477626450,-504.02234705,0.0001553,2]
[334691070,1723477626472,-1139.17,0.0001553,2]
[334691071,1723477626495,-500.0,0.0001553,2]
[334691072,1723477626517,-500.0,0.0001553,2]
[334691073,1723477626545,-501.68433035,0.0001553,2]
[334691074,1723477626568,-2065.65,0.0001553,2]
[334691075,1723477626589,-500.0,0.0001553,2]
[334691076,1723477626609,-500.0,0.0001553,2]
[334691077,1723477626629,-502.59732915,0.0001553,2]
[334691078,1723477626651,-500.0,0.0001553,2]
[334691079,1723477626671,-504.90175956,0.0001553,2]
[334691080,1723477626692,-500.0,0.0001553,2]
[334691081,1723477626712,-546.69468098,0.0001553,2]
[334691082,1723477626734,-500.0,0.0001553,2]
[334691083,1723477626756,-500.0,0.0001553,2]
[334691084,1723477626777,-500.0,0.0001553,2]
[334691085,1723477626802,-1209.36,0.0001553,2]
[334691086,1723477626824,-672.77,0.0001553,2]
[334691087,1723477626844,-500.0,0.0001553,2]
[334691088,1723477626867,-5637.81885653,0.00015539,2]
[334691089,1723477626887,-1004.62,0.0001554,2]
[334691090,1723477626912,-500.0,0.0001554,2]
[334691091,1723477626935,-1218.21,0.0001554,2]
[334691092,1723477626959,-639.62,0.0001554,2]
[334691093,1723477626982,-3139.53,0.0001554,2]
[334691094,1723477627003,-500.0,0.0001554,2]
[334691095,1723477627025,-1994.82,0.0001554,2]
[334691096,1723477627052,-2711.28990039,0.00015639,2]
[334691097,1723477627074,-2838.76,0.00015639,2]
[334691098,1723477627095,-304.52794347,0.00015639,2]
[334691099,1723477627118,-500.0,0.0001564,2]
[334691100,1723477627140,-500.0,0.0001564,2]
[334691101,1723477627161,-500.0,0.0001564,2]
[334691102,1723477627182,-500.0,0.0001564,2]
[334691103,1723477627226,-505.39917846,0.0001564,2]
[334691104,1723477627251,-505.0,0.0001564,2]
[334691105,1723477627273,-500.0,0.0001564,2]
[334691106,1723477627294,-500.0,0.0001564,2]
[334691107,1723477627315,-503.16277501,0.0001564,2]
[334691108,1723477627338,-506.5942804,0.0001564,2]
[334691109,1723477627358,-502.07461869,0.0001564,2]
[334691110,1723477627380,-500.0,0.0001564,2]
[334691111,1723477627400,-563.22778677,0.0001564,2]
[334691112,1723477627421,-500.0,0.0001564,2]
[334691113,1723477627443,-500.0,0.0001564,2]
[334691114,1723477627464,-500.0,0.0001564,2]
[334691115,1723477627485,-500.0,0.0001564,2]
[334691116,1723477627506,-503.09570099,0.0001564,2]
[334691117,1723477627528,-500.0,0.0001564,2]
[334691118,1723477627549,-500.0,0.0001564,2]
[334691119,1723477627572,-503.79529579,0.0001564,2]
[334691120,1723477627593,-500.0,0.0001564,2]
[334691121,1723477627615,-500.0,0.0001564,2]
[334691122,1723477627639,-1336.96,0.0001564,2]
[334691123,1723477627662,-287.72694153,0.0001564,2]
[334691124,1723477627684,-500.0,0.0001564,2]
[334691125,1723477627706,-500.0,0.0001564,2]
[334691126,1723477627727,-500.0,0.0001564,2]
[334691127,1723477627749,-500.0,0.0001564,2]
[334691128,1723477627778,-500.0,0.0001564,2]
[334691129,1723477627800,-379.90088652,0.0001564,2]
[334691130,1723477627821,-500.0,0.0001564,2]
[334691131,1723477627842,-504.83163467,0.0001564,2]
[334691132,1723477627865,-2838.76,0.00015684,2]
[334691133,1723477627888,-500.0,0.00015684,2]
[334691134,1723477627910,-500.0,0.00015684,2]
[334691135,1723477627932,-168.02082263,0.00015684,2]
[334691136,1723477627954,-500.0,0.00015684,2]
[334691137,1723477627976,-500.0,0.00015684,2]
[334691138,1723477628000,-500.0,0.00015684,2]
[334691139,1723477628024,-500.0,0.00015684,2]
[334691140,1723477628059,-500.0,0.00015684,2]
[334691141,1723477628082,-500.0,0.00015684,2]
[334691142,1723477628109,-500.0,0.00015684,2]
[334691143,1723477628131,-640.52095344,0.00015684,2]
[334691144,1723477628154,-500.0,0.00015684,2]
[334691145,1723477628176,-500.0,0.00015684,2]
[334691146,1723477628203,-250.0,0.00015684,2]
[334691147,1723477628226,-62963.1778719,0.00015685,2]
[334691148,1723477628265,-2838.76,0.00015687,2]
[334691149,1723477628290,-2838.76,0.00015687,2]
[334691150,1723477628314,-2838.76,0.00015687,2]
[334691151,1723477628338,-125926.355744,0.00015688,2]
[334691152,1723477628363,-500.0,0.00015694,2]
[334691153,1723477628387,-2838.76,0.00015694,2]
[334691154,1723477628411,-2838.76,0.00015694,2]
[334691155,1723477628434,-500.0,0.00015695,2]
[334691156,1723477628458,-500.0,0.00015695,2]
[334691157,1723477628481,-502.21590744,0.00015695,2]
[334691158,1723477628504,-700.76,0.00015695,2]
[334691159,1723477628527,-500.0,0.00015695,2]
[334691160,1723477628550,-928.85,0.00015695,2]
[334691161,1723477628574,-500.0,0.00015695,2]
[334691162,1723477628597,-500.0,0.00015695,2]
[334691163,1723477628623,-500.0,0.00015695,2]
[334691164,1723477628646,-598.73,0.00015695,2]
[334691165,1723477628669,-500.0,0.00015695,2]
[334691166,1723477628691,-1395.29,0.00015695,2]
[334691167,1723477628714,-500.0,0.00015695,2]
[334691168,1723477628735,-500.0,0.00015695,2]
[334691169,1723477628757,-1207.23,0.00015695,2]
[334691170,1723477628779,-629.27268015,0.00015695,2]
[334691171,1723477628802,-500.0,0.00015695,2]
[334691172,1723477628840,-500.0,0.00015695,2]
[334691173,1723477628866,-500.0,0.00015695,2]
[334691174,1723477628890,-500.0,0.00015695,2]
[334691175,1723477628913,-1819.56,0.00015695,2]
[334691176,1723477628939,-501.49390567,0.00015695,2]
[334691177,1723477628962,-1064.74,0.00015695,2]
[334691178,1723477628987,-500.0,0.00015695,2]
[334691179,1723477629012,-325.65215929,0.00015695,2]
[334691180,1723477629036,-500.0,0.00015697,2]
[334691181,1723477629078,-500.0,0.00015697,2]
[334691182,1723477629103,-500.0,0.00015697,2]
[334691183,1723477629127,-2838.76,0.00015697,2]
[334691184,1723477629152,-2838.76,0.00015697,2]
[334691185,1723477629176,-506.13000869,0.00015698,2]
[334691186,1723477629200,-500.0,0.00015698,2]
[334691187,1723477629223,-503.04790354,0.00015698,2]
[334691188,1723477629247,-500.0,0.00015698,2]
[334691189,1723477629273,-500.0,0.00015698,2]
[334691190,1723477629299,-520.15882396,0.00015698,2]
[334691191,1723477629322,-500.0,0.00015698,2]
[334691192,1723477629345,-500.0,0.00015698,2]
[334691193,1723477629368,-500.0,0.00015698,2]
[334691194,1723477629391,-502.78650335,0.00015698,2]
[334691195,1723477629412,-500.0,0.00015698,2]
[334691196,1723477629436,-502.64746291,0.00015698,2]
[334691197,1723477629459,-500.0,0.00015698,2]
[334691198,1723477629482,-500.0,0.00015698,2]
[334691199,1723477629505,-500.0,0.00015698,2]
[334691200,1723477629529,-500.0,0.00015698,2]
[334691201,1723477629551,-506.28635247,0.00015698,2]
[334691202,1723477629584,-831.64,0.00015698,2]
[334691203,1723477629607,-500.0,0.00015698,2]
[334691204,1723477629632,-500.0,0.00015698,2]
[334691205,1723477629655,-500.0,0.00015698,2]
[334691206,1723477629677,-500.0,0.00015698,2]
[334691207,1723477629700,-500.0,0.00015698,2]
[334691208,1723477629721,-500.0,0.00015698,2]
[334691209,1723477629743,-230.78518534,0.00015698,2]
[334691210,1723477629766,-500.0,0.00015698,2]
[334691211,1723477629789,-500.0,0.00015698,2]
[334691212,1723477629822,-500.0,0.00015698,2]
[334691213,1723477629844,-500.0,0.00015698,2]
[334691214,1723477630055,-500.0,0.00015698,2]
[334691215,1723477630078,-500.0,0.00015698,2]
[334691216,1723477630101,-500.0,0.00015698,2]
[334691217,1723477630127,-500.0,0.00015698,2]
[334691218,1723477630150,-500.0,0.00015698,2]
[334691219,1723477630171,-500.0,0.00015698,2]
[334691220,1723477630193,-503.10663543,0.00015698,2]
[334691221,1723477630216,-500.0,0.00015698,2]
[334691222,1723477630239,-503.23853271,0.00015698,2]
[334691223,1723477630260,-651.66,0.00015698,2]
[334691224,1723477630281,-2910.2,0.00015698,2]
[334691225,1723477630304,-505.58590369,0.00015698,2]
[334691226,1723477630324,-500.0,0.00015698,2]
[334691227,1723477630345,-225.25171686,0.00015698,2]
[334691228,1723477630366,-509.51777587,0.00015698,2]
[334691229,1723477630388,-715.91,0.00015698,2]
[334691230,1723477630411,-528.49685715,0.00015698,2]
[334691231,1723477630433,-500.0,0.00015698,2]
[334691232,1723477630454,-505.81028186,0.00015698,2]
[334691233,1723477630475,-500.0,0.00015698,2]
[334691234,1723477630499,-282.70644405,0.00015698,2]
[334691235,1723477630521,-505.64252159,0.00015698,2]
[334691236,1723477630543,-500.0,0.00015698,2]
[334691237,1723477630568,-500.0,0.00015698,2]
[334691238,1723477630590,-500.0,0.00015698,2]
[334691239,1723477630613,-500.0,0.00015698,2]
[334691240,1723477630634,-523.12,0.00015698,2]
[334691241,1723477630656,-509.53757874,0.00015698,2]
[334691242,1723477630678,-279.59967043,0.00015698,2]
[334691243,1723477630700,-500.0,0.00015698,2]
[334691244,1723477630721,-502.41031601,0.00015698,2]
[334691245,1723477630743,-1163.85,0.00015698,2]
[334691246,1723477630769,-505.37416633,0.00015698,2]
[334691247,1723477630791,-500.0,0.00015698,2]
[334691248,1723477630813,-500.0,0.00015698,2]
[334691249,1723477630835,-504.51658871,0.00015698,2]
[334691250,1723477630857,-500.0,0.00015698,2]
[334691251,1723477630879,-506.51584812,0.00015698,2]
[334691252,1723477630900,-500.0,0.00015698,2]
[334691253,1723477630921,-509.21040246,0.00015698,2]
[334691254,1723477630943,-500.0,0.00015698,2]
[334691255,1723477630967,-509.72787759,0.00015698,2]
[334691256,1723477630989,-501.14172296,0.00015698,2]
[334691257,1723477631012,-500.0,0.00015698,2]
[334691258,1723477631034,-500.0,0.00015698,2]
[334691259,1723477631061,-500.0,0.00015698,2]
[334691260,1723477631091,-500.0,0.00015698,2]
[334691261,1723477631116,-507.77632743,0.00015698,2]
[334691262,1723477631141,-502.30956681,0.00015698,2]
[334691263,1723477631164,-500.43605839,0.00015698,2]
[334691264,1723477631185,-503.16228762,0.00015698,2]
[334691265,1723477631207,-500.0,0.00015698,2]
[334691266,1723477631229,-505.0683132,0.00015698,2]
[334691267,1723477631250,-630.41046164,0.00015698,2]
[334691268,1723477631273,-500.0,0.00015698,2]
[334691269,1723477631296,-512.50635264,0.00015698,2]
[334691270,1723477631328,-500.0,0.00015698,2]
[334691271,1723477631383,-500.0,0.00015698,2]
[334691272,1723477631406,-513.37383625,0.00015698,2]
[334691273,1723477631470,-502.07607423,0.00015698,2]
[334691274,1723477631494,-1189.82,0.00015698,2]
[334691275,1723477631517,-500.0,0.00015698,2]
[334691276,1723477631539,-500.0,0.00015698,2]
[334691277,1723477631560,-500.0,0.00015698,2]
[334691278,1723477631583,-1203.23,0.00015698,2]
[334691279,1723477631605,-500.0,0.00015698,2]
[334691280,1723477631627,-500.0,0.00015698,2]
[334691281,1723477631649,-500.0,0.00015698,2]
[334691282,1723477631671,-500.0,0.00015698,2]
[334691283,1723477631693,-505.79921518,0.00015698,2]
[334691284,1723477631715,-504.17183432,0.00015698,2]
[334691285,1723477631737,-1330.94,0.00015698,2]
[334691286,1723477631760,-500.0,0.00015698,2]
[334691287,1723477631783,-500.0,0.00015698,2]
[334691288,1723477631805,-500.0,0.00015698,2]
[334691289,1723477631826,-500.0,0.00015698,2]
[334691290,1723477631847,-500.0,0.00015698,2]
[334691291,1723477631869,-504.0,0.00015698,2]
[334691292,1723477631890,-626.7,0.00015698,2]
[334691293,1723477631913,-521.12,0.00015698,2]
[334691294,1723477631936,-500.0,0.00015698,2]
[334691295,1723477631961,-1279.6,0.00015698,2]
[334691296,1723477631985,-518.52850845,0.00015698,2]
[334691297,1723477632008,-500.0,0.00015698,2]
[334691298,1723477632030,-500.0,0.00015698,2]
[334691299,1723477632051,-585.31294183,0.00015698,2]
[334691300,1723477632073,-365.82937392,0.00015698,2]
[334691301,1723477632094,-500.0,0.00015698,2]
[334691302,1723477632118,-504.97414325,0.00015698,2]
[334691303,1723477632141,-500.0,0.00015698,2]
[334691304,1723477632163,-500.0,0.00015698,2]
[334691305,1723477632186,-607.66,0.00015698,2]
[334691306,1723477632209,-807.72,0.00015698,2]
[334691307,1723477632230,-500.0,0.00015698,2]
[334691308,1723477632252,-500.0,0.00015698,2]
[334691309,1723477632275,-500.0,0.00015698,2]
[334691310,1723477632299,-500.0,0.00015698,2]
[334691311,1723477632322,-806.87,0.00015698,2]
[334691312,1723477632345,-500.0,0.00015698,2]
[334691313,1723477632367,-506.99037355,0.00015698,2]
[334691314,1723477632392,-500.0,0.00015698,2]
[334691315,1723477632413,-500.0,0.00015698,2]
[334691316,1723477632434,-500.0,0.00015698,2]
[334691317,1723477632456,-500.0,0.00015698,2]
[334691318,1723477632477,-500.0,0.00015698,2]
[334691319,1723477632499,-500.0,0.00015698,2]
[334691320,1723477632520,-500.0,0.00015698,2]
[334691321,1723477632540,-500.0,0.00015698,2]
[334691322,1723477632561,-500.0,0.00015698,2]
[334691323,1723477632587,-500.0,0.00015698,2]
[334691324,1723477632609,-832.37,0.00015698,2]
[334691325,1723477632630,-506.35734936,0.00015698,2]
[334691326,1723477632651,-200.67872286,0.00015698,2]
[334691327,1723477632671,-500.0,0.00015698,2]
[334691328,1723477632692,-500.0,0.00015698,2]
[334691329,1723477632713,-727.51,0.00015698,2]
[334691330,1723477632733,-500.0,0.00015698,2]
[334691331,1723477632754,-297.51445606,0.00015698,2]
[334691332,1723477632775,-1010.31,0.00015698,2]
[334691333,1723477632795,-500.0,0.00015698,2]
[334691334,1723477632815,-500.0,0.00015698,2]
[334691335,1723477632836,-500.0,0.00015698,2]
[334691336,1723477632857,-500.0,0.00015698,2]
[334691337,1723477632879,-500.0,0.00015698,2]
[334691338,1723477632904,-500.0,0.00015698,2]
[334691339,1723477632927,-500.0,0.00015698,2]
[334691340,1723477632949,-500.0,0.00015698,2]
[334691341,1723477632972,-500.0,0.00015698,2]
[334691342,1723477632993,-500.0,0.00015698,2]
[334691343,1723477633014,-504.70552119,0.00015698,2]
[334691344,1723477633036,-521.35811534,0.00015698,2]
[334691345,1723477633057,-500.0,0.00015698,2]
[334691346,1723477633078,-500.0,0.00015698,2]
[334691347,1723477633098,-500.0,0.00015698,2]
[334691348,1723477633121,-415.02991626,0.00015698,2]
[334691349,1723477633142,-469.7200934,0.00015698,2]
[334691350,1723477633163,-500.0,0.00015698,2]
[334691351,1723477633188,-500.0,0.00015698,2]
[334691352,1723477633209,-500.0,0.00015698,2]
[334691353,1723477633231,-500.0,0.00015698,2]
[334691354,1723477633252,-507.01067187,0.00015698,2]
[334691355,1723477633274,-500.0,0.00015698,2]
[334691356,1723477633295,-500.0,0.00015698,2]
[334691357,1723477633317,-500.0,0.00015698,2]
[334691358,1723477633338,-500.0,0.00015698,2]
[334691359,1723477633359,-500.0,0.00015698,2]
[334691360,1723477633379,-500.0,0.00015698,2]
[334691361,1723477633400,-500.0,0.00015698,2]
[334691362,1723477633422,-500.0,0.00015698,2]
[334691363,1723477633443,-783.07,0.00015698,2]
[334691364,1723477633463,-509.47072103,0.00015698,2]
[334691365,1723477633486,-500.0,0.00015698,2]
[334691366,1723477633507,-520.78045696,0.00015698,2]
[334691367,1723477633528,-500.0,0.00015698,2]
[334691368,1723477633550,-500.0,0.00015698,2]
[334691369,1723477633704,-500.0,0.00015698,2]
[334691370,1723477633730,-500.0,0.00015698,2]
[334691371,1723477633753,-500.0,0.00015698,2]
[334691372,1723477633774,-991.97,0.00015698,2]
[334691373,1723477633797,-500.0,0.00015698,2]
[334691374,1723477633819,-552.98054679,0.00015698,2]
[334691375,1723477633841,-500.0,0.00015698,2]
[334691376,1723477633863,-500.0,0.00015698,2]
[334691377,1723477633884,-991.28,0.00015698,2]
[334691378,1723477633907,-500.0,0.00015698,2]
[334691379,1723477633930,-500.0,0.00015698,2]
[334691380,1723477633952,-500.0,0.00015698,2]
[334691381,1723477633975,-500.0,0.00015698,2]
[334691382,1723477633997,-875.88,0.00015698,2]
[334691383,1723477634019,-500.0,0.00015698,2]
[334691384,1723477634048,-500.0,0.00015698,2]
[334691385,1723477634077,-500.0,0.00015698,2]
[334691386,1723477634099,-500.0,0.00015698,2]
[334691387,1723477634125,-500.0,0.00015698,2]
[334691388,1723477634153,-500.0,0.00015698,2]
[334691389,1723477634176,-508.83425662,0.00015698,2]
[334691390,1723477634197,-500.0,0.00015698,2]
[334691391,1723477634220,-500.0,0.00015698,2]
[334691392,1723477634242,-500.0,0.00015698,2]
[334691393,1723477634263,-701.33,0.00015698,2]
[334691394,1723477634283,-627.49681754,0.00015698,2]
[334691395,1723477634305,-656.1,0.00015698,2]
[334691396,1723477634326,-500.0,0.00015698,2]
[334691397,1723477634347,-500.0,0.00015698,2]
[334691398,1723477634369,-535.14,0.00015698,2]
[334691399,1723477634390,-1494.75,0.00015698,2]
[334691400,1723477634413,-500.0,0.00015698,2]
[334691401,1723477634436,-529.34,0.00015698,2]
[334691402,1723477634458,-500.0,0.00015698,2]
[334691403,1723477634480,-151.0,0.00015698,2]
[334691404,1723477634501,-500.0,0.00015698,2]
[334691405,1723477634521,-560.17,0.00015698,2]
[334691406,1723477634544,-1949.88,0.00015698,2]
[334691407,1723477634565,-500.0,0.00015698,2]
[334691408,1723477634586,-699.43,0.00015698,2]
[334691409,1723477634608,-503.32399465,0.00015698,2]
[334691410,1723477634630,-413.764054,0.00015698,2]
[334691411,1723477634651,-593.45,0.00015698,2]
[334691412,1723477634672,-500.0,0.00015698,2]
[334691413,1723477634694,-413.764054,0.00015698,2]
[334691414,1723477634717,-180.532013,0.00015698,2]
[334691415,1723477634739,-500.0,0.00015698,2]
[334691416,1723477634761,-180.532013,0.00015698,2]
[334691417,1723477634782,-733.21,0.00015698,2]
[334691418,1723477634804,-500.0,0.00015698,2]
[334691419,1723477634826,-151.0,0.00015698,2]
[334691420,1723477634848,-500.0,0.00015698,2]
[334691421,1723477634871,-500.0,0.00015698,2]
[334691422,1723477634892,-500.0,0.00015698,2]
[334691423,1723477634915,-572.656076,0.00015698,2]
[334691424,1723477634936,-500.0,0.00015698,2]
[334691425,1723477634957,-500.0,0.00015698,2]
[334691426,1723477634980,-572.656076,0.00015698,2]
[334691427,1723477635005,-502.36932696,0.00015698,2]
[334691428,1723477635028,-687.949945,0.00015698,2]
[334691429,1723477635050,-506.12883141,0.00015698,2]
[334691430,1723477635084,-500.0,0.00015698,2]
[334691431,1723477635110,-687.949945,0.00015698,2]
[334691432,1723477635131,-538.62229691,0.00015698,2]
[334691433,1723477635152,-151.0,0.00015698,2]
[334691434,1723477635174,-502.68630497,0.00015698,2]
[334691435,1723477635196,-500.0,0.00015698,2]
[334691436,1723477635218,-263.724371,0.00015698,2]
[334691437,1723477635240,-151.0,0.00015698,2]
[334691438,1723477635262,-971.04,0.00015698,2]
[334691439,1723477635284,-263.724371,0.00015698,2]
[334691440,1723477635307,-503.80031897,0.00015698,2]
[334691441,1723477635330,-608.87,0.00015698,2]
[334691442,1723477635352,-500.0,0.00015698,2]
[334691443,1723477635374,-503.24843815,0.00015698,2]
[334691444,1723477635395,-643.61,0.00015698,2]
[334691445,1723477635416,-500.0,0.00015698,2]
[334691446,1723477635438,-950.28,0.00015698,2]
[334691447,1723477635460,-730.47,0.00015698,2]
[334691448,1723477635482,-1366.24,0.00015698,2]
[334691449,1723477635503,-500.0,0.00015698,2]
[334691450,1723477635525,-500.0,0.00015698,2]
[334691451,1723477635547,-826.23,0.00015698,2]
[334691452,1723477635569,-500.73988775,0.00015698,2]
[334691453,1723477635591,-500.0,0.00015698,2]
[334691454,1723477635613,-500.0,0.00015698,2]
[334691455,1723477635634,-500.0,0.00015708,2]
[334691456,1723477635656,-500.0,0.00015708,2]
[334691457,1723477635677,-512.17168616,0.00015708,2]
[334691458,1723477635699,-2126.66267952,0.00015708,2]
[334691459,1723477635720,-500.0,0.00015708,2]
[334691460,1723477635741,-500.0,0.00015708,2]
[334691461,1723477635761,-500.0,0.00015708,2]
[334691462,1723477635782,-151.0,0.00015708,2]
[334691463,1723477635803,-477.635504,0.00015708,2]
[334691464,1723477635825,-477.635504,0.00015708,2]
[334691465,1723477635847,-151.0,0.00015708,2]
[334691466,1723477635868,-151.0,0.00015708,2]
[334691467,1723477635890,-151.0,0.00015708,2]
[334691468,1723477635911,-151.0,0.00015708,2]
[334691469,1723477635932,-151.0,0.00015708,2]
[334691470,1723477635954,-393.959259,0.00015708,2]
[334691471,1723477635976,-393.959259,0.00015708,2]
[334691472,1723477635999,-301.29579535,0.00015744,2]
[334691473,1723477636020,-196.82657408,0.00015746,2]
[334691474,1723477636042,-150.112233,0.000158,2]
[334691475,1723477636069,-2838.76,0.00015803,2]
[334691476,1723477636097,-2838.76,0.00015803,2]
[334691477,1723477636118,-522.78,0.00015803,2]
[334691478,1723477636143,-2451.08,0.00015803,2]
[334691479,1723477636164,-500.0,0.00015803,2]
[334691480,1723477636186,-207.24713946,0.00015803,2]
[334691481,1723477636208,-500.0,0.00015803,2]
[334691482,1723477636231,-9323.84,0.00015803,2]
[334691483,1723477636253,-1005.17,0.00015803,2]
[334691484,1723477636274,-500.0,0.00015803,2]
[334691485,1723477636295,-533.56,0.00015803,2]
[334691486,1723477636317,-500.0,0.00015803,2]
[334691487,1723477636339,-1570.17,0.00015803,2]
[334691488,1723477636360,-500.0,0.00015803,2]
[334691489,1723477636383,-989.92,0.00015803,2]
[334691490,1723477636408,-500.0,0.00015803,2]
[334691491,1723477636433,-500.0,0.00015803,2]
[334691492,1723477636456,-500.0,0.00015803,2]
[334691493,1723477636478,-6140.5,0.00015803,2]
[334691494,1723477636500,-1961.64,0.00015803,2]
[334691495,1723477636521,-1297.58,0.00015803,2]
[334691496,1723477636542,-500.0,0.00015803,2]
[334691497,1723477636579,-567.87,0.00015804,2]
[334691498,1723477636601,-1401.99,0.00015804,2]
[334691499,1723477636623,-890.0,0.00015804,2]
[334691500,1723477636645,-500.0,0.00015804,2]
[334691501,1723477636668,-500.0,0.00015804,2]
[334691502,1723477636689,-500.0,0.00015804,2]
[334691503,1723477636711,-990.82,0.00015804,2]
[334691504,1723477636732,-156.649056,0.00015804,2]
[334691505,1723477636753,-156.649056,0.00015804,2]
[334691506,1723477636776,-500.0,0.00015804,2]
[334691507,1723477636797,-500.0,0.00015804,2]
[334691508,1723477636819,-500.0,0.00015804,2]
[334691509,1723477636843,-500.0,0.00015804,2]
[334691510,1723477636866,-887.8,0.00015804,2]
[334691511,1723477636888,-4799.33,0.00015804,2]
[334691512,1723477636913,-1076.44,0.00015804,2]
[334691513,1723477636935,-521.45,0.00015804,2]
[334691514,1723477636960,-1715.07,0.00015804,2]
[334691515,1723477636984,-500.0,0.00015804,2]
[334691516,1723477637009,-500.0,0.00015804,2]
[334691517,1723477637034,-500.0,0.00015804,2]
[334691518,1723477637186,-1148.2,0.00015804,2]
[334691519,1723477637214,-1762.91,0.00015804,2]
[334691520,1723477637236,-625.0,0.00015804,2]
[334691521,1723477637260,-1833.71,0.00015804,2]
[334691522,1723477637283,-557.37,0.00015804,2]
[334691523,1723477637306,-772.32,0.00015804,2]
[334691524,1723477637328,-500.0,0.00015804,2]
[334691525,1723477637351,-1254.45,0.00015804,2]
[334691526,1723477637373,-1715.78,0.00015804,2]
[334691527,1723477637394,-1307.89,0.00015804,2]
[334691528,1723477637417,-8777.12,0.00015804,2]
[334691529,1723477637444,-584.21,0.00015804,2]
[334691530,1723477637469,-513.72,0.00015804,2]
[334691531,1723477637492,-500.0,0.00015804,2]
[334691532,1723477637516,-2703.2,0.00015804,2]
[334691533,1723477637539,-500.0,0.00015804,2]
[334691534,1723477637562,-1648.34,0.00015804,2]
[334691535,1723477637603,-1566.53,0.00015804,2]
[334691536,1723477637626,-1426.58,0.00015804,2]
[334691537,1723477637650,-638.85,0.00015804,2]
[334691538,1723477637675,-500.0,0.00015804,2]
[334691539,1723477637698,-856.41,0.00015804,2]
[334691540,1723477637721,-1004.82,0.00015804,2]
[334691541,1723477637743,-1139.17,0.00015804,2]
[334691542,1723477637767,-500.0,0.00015804,2]